[Event "CCT Chessable Masters Play-In 2025"]
[Site "Online"]
[Date "2025.02.17"]
[Round "5.31"]
[White "Vaishali, Rameshbabu"]
[Black "Bluebaum, Matthias"]
[Result "0-1"]
[ECO "E01"]
[WhiteElo "2476"]
[BlackElo "2643"]
[PlyCount "74"]
[EventDate "2025.02.13"]
[EventType "swiss"]
[EventCountry "NET"]
[TimeControl "600"]
[WhiteClock "0:00:21"]
[BlackClock "0:03:54"]

1. c4 {[%emt 0:00:02]} e6 {[%emt 0:00:01]} 2. g3 {[%emt 0:00:02]} d5 {[%emt 0:00:01]} 3. Bg2 {[%emt 0:00:00]} Nf6 {[%emt 0:00:00]} 4. Nf3 {[%emt 0:00:05]} Nc6 {[%emt 0:00:01]} 5. O-O {[%emt 0:00:05]} Bd6 {[%emt 0:00:00]} 6. d4 {[%emt 0:00:12]} O-O {[%emt 0:00:01]} 7. b3 {[%emt 0:00:02]} dxc4 {[%emt 0:00:01]} 8. bxc4 {[%emt 0:00:00]} e5 {[%emt 0:00:01]} 9. e3 {[%emt 0:00:08]} Bg4 {[%emt 0:00:03]} 10. h3 {[%emt 0:00:21]} Bh5 {[%emt 0:00:01]} 11. g4 {[%emt 0:00:14]} Bg6 {[%emt 0:00:01]} 12. c5 {[%emt 0:00:12]} Be7 {[%emt 0:00:23]} 13. Nxe5 {[%emt 0:00:10]} Nxe5 {[%emt 0:00:09]} 14. dxe5 {[%emt 0:00:01]} Bd3 {[%emt 0:00:01]} 15. Re1 {[%emt 0:01:04]} Ne4 {[%emt 0:00:04]} 16. Nd2 {[%emt 0:00:18]} Nxc5 {[%emt 0:00:16]} 17. Nb3 {[%emt 0:00:18]} Ba6 {[%emt 0:00:25]} 18. Nxc5 {[%emt 0:00:14]} Bxc5 {[%emt 0:00:01]} 19. Qc2 {[%emt 0:00:04]} Qe7 {[%emt 0:00:03]} 20. Bb2 {[%emt 0:00:04]} Rad8 {[%emt 0:00:09]} 21. Red1 {[%emt 0:00:21]} c6 {[%emt 0:00:30]} 22. a4 {[%emt 0:00:12]} h6 {[%emt 0:00:15]} 23. Be4 {[%emt 0:00:21]} Bb6 {[%emt 0:00:16]} 24. Kg2 {[%emt 0:00:18]} Qe6 {[%emt 0:00:25]} 25. Rxd8 {[%emt 0:00:54]} Rxd8 {[%emt 0:00:00]} 26. Rd1 {[%emt 0:00:01]} Rxd1 {[%emt 0:00:46]} 27. Qxd1 {[%emt 0:00:00]} Bc4 {[%emt 0:00:01]} 28. f4 {[%emt 0:00:34]} Bb3 {[%emt 0:00:20]} 29. Qd3 {[%emt 0:00:37]} Bxa4 {[%emt 0:00:10]} 30. Bc3 {[%emt 0:00:26]} Bb5 {[%emt 0:00:21]} 31. Qd2 {[%emt 0:00:13]} Qc4 {[%emt 0:00:04]} 32. Bd4 {[%emt 0:00:28]} c5 {[%emt 0:00:12]} 33. e6 {[%emt 0:01:00]} cxd4 {[%emt 0:00:20]} 34. exf7+ {[%emt 0:00:05]} Qxf7 {[%emt 0:00:12]} 35. exd4 {[%emt 0:00:05]} Qc4 {[%emt 0:00:01]} 36. Bf3 {[%emt 0:00:04]} Qxd4 {[%emt 0:00:07]} 37. Qe1 {[%emt 0:00:24]} Qe3 {[%emt 0:00:24]} 0-1

[Event "CCT Chessable Masters Play-In 2025"]
[Site "Online"]
[Date "2025.02.17"]
[Round "5.32"]
[White "Kuzubov, Yuriy"]
[Black "Gholami Orimi, Mahdi"]
[Result "1-0"]
[ECO "D38"]
[WhiteElo "2597"]
[BlackElo "2509"]
[PlyCount "103"]
[EventDate "2025.02.13"]
[EventType "swiss"]
[EventCountry "NET"]
[TimeControl "600"]
[WhiteClock "0:01:16"]
[BlackClock "0:01:24"]

1. d4 {[%emt 0:00:01]} Nf6 {[%emt 0:00:28]} 2. Nf3 {[%emt 0:00:01]} d5 {[%emt 0:00:24]} 3. c4 {[%emt 0:00:01]} e6 {[%emt 0:00:02]} 4. Nc3 {[%emt 0:00:02]} Bb4 {[%emt 0:00:07]} 5. Bg5 {[%emt 0:00:02]} h6 {[%emt 0:00:02]} 6. Bxf6 {[%emt 0:00:01]} Qxf6 {[%emt 0:00:01]} 7. e3 {[%emt 0:00:01]} O-O {[%emt 0:00:03]} 8. Rc1 {[%emt 0:00:01]} dxc4 {[%emt 0:00:02]} 9. Bxc4 {[%emt 0:00:01]} c5 {[%emt 0:00:01]} 10. dxc5 {[%emt 0:00:01]} Nd7 {[%emt 0:00:09]} 11. c6 {[%emt 0:00:01]} bxc6 {[%emt 0:00:01]} 12. Qc2 {[%emt 0:00:01]} Ne5 {[%emt 0:00:03]} 13. Nxe5 {[%emt 0:00:26]} Qxe5 {[%emt 0:00:01]} 14. a3 {[%emt 0:00:02]} Bd6 {[%emt 0:00:15]} 15. Ne4 {[%emt 0:00:12]} Bc7 {[%emt 0:00:04]} 16. Be2 {[%emt 0:01:28]} Rb8 {[%emt 0:01:32]} 17. b4 {[%emt 0:00:04]} Bb7 {[%emt 0:01:08]} 18. Nc5 {[%emt 0:00:17]} Rfd8 {[%emt 0:00:01]} 19. g3 {[%emt 0:00:08]} Bc8 {[%emt 0:00:04]} 20. O-O {[%emt 0:00:12]} Bb6 {[%emt 0:00:01]} 21. Bf3 {[%emt 0:00:29]} Qc7 {[%emt 0:00:05]} 22. Rfd1 {[%emt 0:00:52]} Bb7 {[%emt 0:00:33]} 23. Kg2 {[%emt 0:00:36]} Qe7 {[%emt 0:00:17]} 24. h4 {[%emt 0:00:22]} Ba8 {[%emt 0:00:51]} 25. Nb3 {[%emt 0:00:23]} Rdc8 {[%emt 0:00:11]} 26. h5 {[%emt 0:00:10]} Bb7 {[%emt 0:00:03]} 27. Nc5 {[%emt 0:00:03]} Rd8 {[%emt 0:00:13]} 28. Nxb7 {[%emt 0:00:02]} Qxb7 {[%emt 0:00:02]} 29. b5 {[%emt 0:00:04]} Qe7 {[%emt 0:00:01]} 30. bxc6 {[%emt 0:00:00]} Rxd1 {[%emt 0:00:02]} 31. Rxd1 {[%emt 0:00:03]} Qxa3 {[%emt 0:00:06]} 32. c7 {[%emt 0:00:10]} Rc8 {[%emt 0:00:06]} 33. Bb7 {[%emt 0:00:17]} Rxc7 {[%emt 0:00:11]} 34. Rd8+ {[%emt 0:00:01]} Qf8 {[%emt 0:00:00]} 35. Rxf8+ {[%emt 0:00:03]} Kxf8 {[%emt 0:00:00]} 36. Qe4 {[%emt 0:00:02]} Rc5 {[%emt 0:00:05]} 37. g4 {[%emt 0:00:14]} Ke7 {[%emt 0:00:01]} 38. Qh7 {[%emt 0:00:09]} Kf6 {[%emt 0:00:03]} 39. f4 {[%emt 0:00:14]} Rb5 {[%emt 0:00:03]} 40. Be4 {[%emt 0:00:04]} Bxe3 {[%emt 0:00:04]} 41. Kf3 {[%emt 0:00:04]} Bc1 {[%emt 0:00:03]} 42. Bd3 {[%emt 0:00:23]} Rb4 {[%emt 0:00:03]} 43. f5 {[%emt 0:00:03]} e5 {[%emt 0:00:05]} 44. Qg8 {[%emt 0:00:04]} Rd4 {[%emt 0:00:04]} 45. Be4 {[%emt 0:00:04]} Ba3 {[%emt 0:00:03]} 46. g5+ {[%emt 0:00:11]} hxg5 {[%emt 0:00:03]} 47. h6 {[%emt 0:00:07]} g4+ {[%emt 0:00:05]} 48. Kg3 {[%emt 0:00:04]} Rxe4 {[%emt 0:00:34]} 49. Qxg7+ {[%emt 0:00:04]} Kxf5 {[%emt 0:00:01]} 50. Qh7+ {[%emt 0:00:12]} Kg5 {[%emt 0:00:07]} 51. Qxe4 {[%emt 0:00:01]} f5 {[%emt 0:00:02]} 52. Qxe5 {[%emt 0:00:06]} 1-0

[Event "CCT Chessable Masters Play-In 2025"]
[Site "Online"]
[Date "2025.02.17"]
[Round "5.33"]
[White "Volokitin, Andrei"]
[Black "Vidit, Santosh Gujrathi"]
[Result "1-0"]
[ECO "B80"]
[WhiteElo "2643"]
[BlackElo "2721"]
[PlyCount "55"]
[EventDate "2025.02.13"]
[EventType "swiss"]
[EventCountry "NET"]
[TimeControl "600"]
[WhiteClock "0:02:45"]
[BlackClock "0:05:51"]

1. e4 {[%emt 0:00:03]} c5 {[%emt 0:00:03]} 2. Nf3 {[%emt 0:00:01]} d6 {[%emt 0:00:03]} 3. d4 {[%emt 0:00:02]} cxd4 {[%emt 0:00:00]} 4. Nxd4 {[%emt 0:00:01]} Nf6 {[%emt 0:00:00]} 5. Nc3 {[%emt 0:00:02]} a6 {[%emt 0:00:01]} 6. Be3 {[%emt 0:00:08]} e6 {[%emt 0:00:03]} 7. a4 {[%emt 0:00:10]} Be7 {[%emt 0:00:24]} 8. g4 {[%emt 0:00:22]} h5 {[%emt 0:00:04]} 9. gxh5 {[%emt 0:00:35]} Rxh5 {[%emt 0:00:00]} 10. h4 {[%emt 0:00:39]} Nbd7 {[%emt 0:00:13]} 11. Be2 {[%emt 0:00:08]} Rh8 {[%emt 0:00:04]} 12. h5 {[%emt 0:00:26]} Nc5 {[%emt 0:00:01]} 13. Bf3 {[%emt 0:00:17]} Qa5 {[%emt 0:00:23]} 14. Bd2 {[%emt 0:01:14]} Qc7 {[%emt 0:00:03]} 15. Qe2 {[%emt 0:00:20]} b6 {[%emt 0:00:29]} 16. e5 {[%emt 0:00:17]} dxe5 {[%emt 0:00:03]} 17. Ndb5 {[%emt 0:00:02]} axb5 {[%emt 0:00:05]} 18. Nxb5 {[%emt 0:00:01]} Qb8 {[%emt 0:00:49]} 19. Bxa8 {[%emt 0:00:03]} e4 {[%emt 0:00:08]} 20. Bc6+ {[%emt 0:00:30]} Kf8 {[%emt 0:00:03]} 21. O-O-O {[%emt 0:00:19]} Nxa4 {[%emt 0:00:08]} 22. h6 {[%emt 0:00:57]} g6 {[%emt 0:00:35]} 23. h7 {[%emt 0:00:06]} Rxh7 {[%emt 0:00:08]} 24. Rxh7 {[%emt 0:00:03]} Nxh7 {[%emt 0:00:00]} 25. Qxe4 {[%emt 0:00:08]} Nc5 {[%emt 0:00:01]} 26. Qe3 {[%emt 0:00:10]} Bb7 {[%emt 0:00:10]} 27. Qh6+ {[%emt 0:00:09]} Kg8 {[%emt 0:00:08]} 28. Rh1 {[%emt 0:00:02]} 1-0

[Event "CCT Chessable Masters Play-In 2025"]
[Site "Online"]
[Date "2025.02.17"]
[Round "5.34"]
[White "Kravtsiv, Martyn"]
[Black "Ding, Liren"]
[Result "1-0"]
[ECO "B23"]
[WhiteElo "2598"]
[BlackElo "2734"]
[PlyCount "91"]
[EventDate "2025.02.13"]
[EventType "swiss"]
[EventCountry "NET"]
[TimeControl "600"]
[WhiteClock "0:00:50"]
[BlackClock "0:00:20"]

1. e4 {[%emt 0:00:01]} c5 {[%emt 0:00:31]} 2. Nc3 {[%emt 0:00:02]} d6 {[%emt 0:00:02]} 3. f4 {[%emt 0:00:02]} g6 {[%emt 0:00:02]} 4. Nf3 {[%emt 0:00:03]} Bg7 {[%emt 0:00:01]} 5. Bb5+ {[%emt 0:00:00]} Bd7 {[%emt 0:00:01]} 6. Bc4 {[%emt 0:00:02]} Nc6 {[%emt 0:00:03]} 7. d3 {[%emt 0:00:03]} Na5 {[%emt 0:00:08]} 8. Bd2 {[%emt 0:00:02]} e6 {[%emt 0:00:52]} 9. Qe2 {[%emt 0:00:03]} Ne7 {[%emt 0:00:04]} 10. Bb5 {[%emt 0:00:27]} Nac6 {[%emt 0:00:25]} 11. e5 {[%emt 0:00:13]} d5 {[%emt 0:00:44]} 12. Bxc6 {[%emt 0:00:31]} Bxc6 {[%emt 0:00:01]} 13. Qf2 {[%emt 0:00:42]} Qb6 {[%emt 0:00:14]} 14. Rb1 {[%emt 0:01:01]} d4 {[%emt 0:01:10]} 15. Ne4 {[%emt 0:00:03]} Bxe4 {[%emt 0:00:01]} 16. dxe4 {[%emt 0:00:01]} Qa6 {[%emt 0:00:00]} 17. b4 {[%emt 0:00:37]} b6 {[%emt 0:00:22]} 18. bxc5 {[%emt 0:00:14]} bxc5 {[%emt 0:00:00]} 19. Qe2 {[%emt 0:00:01]} Qc6 {[%emt 0:00:40]} 20. Qb5 {[%emt 0:00:48]} O-O {[%emt 0:00:28]} 21. Qxc6 {[%emt 0:00:02]} Nxc6 {[%emt 0:00:00]} 22. Ke2 {[%emt 0:00:01]} Rfb8 {[%emt 0:00:18]} 23. Kd3 {[%emt 0:00:17]} Bf8 {[%emt 0:00:01]} 24. Kc4 {[%emt 0:00:46]} Rb6 {[%emt 0:00:29]} 25. Rxb6 {[%emt 0:00:10]} axb6 {[%emt 0:00:01]} 26. Kb5 {[%emt 0:00:01]} Nb4 {[%emt 0:00:43]} 27. Bxb4 {[%emt 0:00:31]} cxb4 {[%emt 0:00:00]} 28. Kxb6 {[%emt 0:00:26]} Rxa2 {[%emt 0:00:09]} 29. Nxd4 {[%emt 0:00:03]} b3 {[%emt 0:00:01]} 30. cxb3 {[%emt 0:00:22]} Rxg2 {[%emt 0:00:00]} 31. f5 {[%emt 0:00:16]} Rd2 {[%emt 0:00:15]} 32. Nc6 {[%emt 0:00:02]} Rb2 {[%emt 0:00:01]} 33. fxe6 {[%emt 0:00:05]} fxe6 {[%emt 0:00:02]} 34. Kc7 {[%emt 0:00:02]} Rxb3 {[%emt 0:00:04]} 35. Kd7 {[%emt 0:00:01]} Re3 {[%emt 0:00:47]} 36. Kxe6 {[%emt 0:00:12]} Rxe4 {[%emt 0:00:02]} 37. Rd1 {[%emt 0:00:21]} Kg7 {[%emt 0:00:03]} 38. Rd7+ {[%emt 0:00:06]} Kh6 {[%emt 0:00:01]} 39. Rf7 {[%emt 0:00:03]} Ba3 {[%emt 0:00:03]} 40. Rf3 {[%emt 0:00:01]} Bb2 {[%emt 0:00:05]} 41. Kd5 {[%emt 0:00:03]} Re2 {[%emt 0:00:08]} 42. e6 {[%emt 0:00:01]} Rd2+ {[%emt 0:00:19]} 43. Kc5 {[%emt 0:00:02]} Rc2+ {[%emt 0:00:02]} 44. Kb5 {[%emt 0:00:11]} Re2 {[%emt 0:00:06]} 45. e7 {[%emt 0:00:01]} Kg7 {[%emt 0:00:11]} 46. Rf2 {[%emt 0:00:08]} 1-0

[Event "CCT Chessable Masters Play-In 2025"]
[Site "Online"]
[Date "2025.02.17"]
[Round "5.35"]
[White "Azarov, Sergei"]
[Black "Le, Tuan Minh"]
[Result "0-1"]
[ECO "C54"]
[WhiteElo "2596"]
[BlackElo "2598"]
[PlyCount "90"]
[EventDate "2025.02.13"]
[EventType "swiss"]
[EventCountry "NET"]
[TimeControl "600"]
[WhiteClock "0:00:37"]
[BlackClock "0:01:25"]

1. e4 {[%emt 0:00:01]} e5 {[%emt 0:00:04]} 2. Nf3 {[%emt 0:00:03]} Nc6 {[%emt 0:00:01]} 3. Bc4 {[%emt 0:00:02]} Bc5 {[%emt 0:00:01]} 4. d3 {[%emt 0:00:02]} d6 {[%emt 0:00:01]} 5. c3 {[%emt 0:00:07]} Nf6 {[%emt 0:00:02]} 6. Bg5 {[%emt 0:00:01]} a6 {[%emt 0:00:06]} 7. O-O {[%emt 0:00:08]} Ba7 {[%emt 0:00:02]} 8. Nbd2 {[%emt 0:00:02]} O-O {[%emt 0:00:07]} 9. Kh1 {[%emt 0:00:17]} h6 {[%emt 0:00:31]} 10. Bh4 {[%emt 0:00:03]} Qe7 {[%emt 0:00:01]} 11. d4 {[%emt 0:00:10]} exd4 {[%emt 0:00:06]} 12. cxd4 {[%emt 0:00:10]} Bg4 {[%emt 0:01:06]} 13. Qc2 {[%emt 0:00:12]} Bxf3 {[%emt 0:00:59]} 14. Nxf3 {[%emt 0:00:38]} Qxe4 {[%emt 0:00:03]} 15. Bd3 {[%emt 0:00:02]} Qf4 {[%emt 0:00:11]} 16. Rad1 {[%emt 0:00:59]} Bb6 {[%emt 0:01:47]} 17. Bg3 {[%emt 0:00:18]} Qg4 {[%emt 0:00:02]} 18. a3 {[%emt 0:00:20]} Rfe8 {[%emt 0:00:10]} 19. Bf5 {[%emt 0:00:35]} Qh5 {[%emt 0:00:01]} 20. h3 {[%emt 0:00:08]} g6 {[%emt 0:00:53]} 21. Bd3 {[%emt 0:00:11]} Kg7 {[%emt 0:00:22]} 22. Rfe1 {[%emt 0:00:23]} Rxe1+ {[%emt 0:00:53]} 23. Rxe1 {[%emt 0:00:01]} Re8 {[%emt 0:00:01]} 24. Rxe8 {[%emt 0:00:04]} Nxe8 {[%emt 0:00:00]} 25. Bxa6 {[%emt 0:00:19]} Nxd4 {[%emt 0:00:13]} 26. Nxd4 {[%emt 0:00:16]} bxa6 {[%emt 0:00:00]} 27. Nf3 {[%emt 0:00:17]} Nf6 {[%emt 0:00:01]} 28. Qc3 {[%emt 0:00:18]} Qd5 {[%emt 0:00:07]} 29. Kh2 {[%emt 0:00:06]} a5 {[%emt 0:00:01]} 30. b4 {[%emt 0:00:06]} axb4 {[%emt 0:00:00]} 31. axb4 {[%emt 0:00:01]} g5 {[%emt 0:00:04]} 32. Nd2 {[%emt 0:00:50]} Qd4 {[%emt 0:00:03]} 33. Qc2 {[%emt 0:00:33]} Qxb4 {[%emt 0:00:03]} 34. Nc4 {[%emt 0:00:00]} Bd4 {[%emt 0:00:05]} 35. Qe2 {[%emt 0:00:02]} Qc5 {[%emt 0:00:03]} 36. h4 {[%emt 0:00:03]} Qf5 {[%emt 0:00:02]} 37. f3 {[%emt 0:00:06]} g4 {[%emt 0:00:02]} 38. Qd2 {[%emt 0:00:16]} Bc5 {[%emt 0:00:06]} 39. Bf4 {[%emt 0:00:03]} gxf3 {[%emt 0:00:02]} 40. gxf3 {[%emt 0:00:09]} Kh7 {[%emt 0:00:01]} 41. Be3 {[%emt 0:00:13]} Qxf3 {[%emt 0:00:06]} 42. Bxc5 {[%emt 0:00:15]} Ng4+ {[%emt 0:00:03]} 43. Kg1 {[%emt 0:00:01]} dxc5 {[%emt 0:00:00]} 44. h5 {[%emt 0:00:20]} Qg3+ {[%emt 0:00:03]} 45. Kf1 {[%emt 0:00:12]} Nh2+ {[%emt 0:00:00]} 0-1

[Event "CCT Chessable Masters Play-In 2025"]
[Site "Online"]
[Date "2025.02.17"]
[Round "5.36"]
[White "Warmerdam, Max"]
[Black "Robson, Ray"]
[Result "1/2-1/2"]
[ECO "A09"]
[WhiteElo "2638"]
[BlackElo "2689"]
[PlyCount "151"]
[EventDate "2025.02.13"]
[EventType "swiss"]
[EventCountry "NET"]
[TimeControl "600"]
[WhiteClock "0:01:07"]
[BlackClock "0:00:23"]

1. Nf3 {[%emt 0:00:01]} d5 {[%emt 0:00:30]} 2. g3 {[%emt 0:00:00]} c5 {[%emt 0:00:02]} 3. Bg2 {[%emt 0:00:01]} Nf6 {[%emt 0:00:01]} 4. c4 {[%emt 0:00:01]} d4 {[%emt 0:00:42]} 5. b4 {[%emt 0:00:02]} cxb4 {[%emt 0:00:01]} 6. a3 {[%emt 0:00:03]} bxa3 {[%emt 0:00:01]} 7. Qa4+ {[%emt 0:00:07]} Bd7 {[%emt 0:00:26]} 8. Qb3 {[%emt 0:00:00]} Nc6 {[%emt 0:00:13]} 9. O-O {[%emt 0:00:12]} e5 {[%emt 0:00:11]} 10. d3 {[%emt 0:00:10]} Rb8 {[%emt 0:00:17]} 11. Bxa3 {[%emt 0:00:20]} Bxa3 {[%emt 0:00:04]} 12. Qxa3 {[%emt 0:00:03]} Qe7 {[%emt 0:00:15]} 13. Nbd2 {[%emt 0:00:03]} Qxa3 {[%emt 0:00:16]} 14. Rxa3 {[%emt 0:00:00]} O-O {[%emt 0:00:42]} 15. Rb1 {[%emt 0:00:01]} b6 {[%emt 0:00:32]} 16. Ne1 {[%emt 0:00:07]} Na5 {[%emt 0:00:39]} 17. Nc2 {[%emt 0:00:24]} Bg4 {[%emt 0:00:01]} 18. Kf1 {[%emt 0:00:04]} Nd7 {[%emt 0:00:01]} 19. Ne4 {[%emt 0:01:03]} h6 {[%emt 0:00:01]} 20. Nb4 {[%emt 0:00:12]} f5 {[%emt 0:00:56]} 21. Nd6 {[%emt 0:00:06]} Nc5 {[%emt 0:00:01]} 22. Nb5 {[%emt 0:00:12]} f4 {[%emt 0:00:27]} 23. Nxa7 {[%emt 0:00:09]} f3 {[%emt 0:00:02]} 24. exf3 {[%emt 0:00:02]} Bxf3 {[%emt 0:00:00]} 25. Nac6 {[%emt 0:00:06]} Nxc6 {[%emt 0:00:07]} 26. Nxc6 {[%emt 0:00:01]} Bxc6 {[%emt 0:00:07]} 27. Bxc6 {[%emt 0:00:01]} Rf6 {[%emt 0:00:05]} 28. Bd5+ {[%emt 0:00:06]} Kh7 {[%emt 0:00:00]} 29. Kg2 {[%emt 0:00:24]} h5 {[%emt 0:00:35]} 30. h4 {[%emt 0:00:06]} Kh6 {[%emt 0:00:04]} 31. Re1 {[%emt 0:01:08]} b5 {[%emt 0:00:01]} 32. cxb5 {[%emt 0:00:34]} Rxb5 {[%emt 0:00:01]} 33. Rxe5 {[%emt 0:00:08]} Nd7 {[%emt 0:00:14]} 34. Rg5 {[%emt 0:00:02]} Nb6 {[%emt 0:00:03]} 35. Bf3 {[%emt 0:00:14]} Rxg5 {[%emt 0:00:01]} 36. hxg5+ {[%emt 0:00:01]} Kxg5 {[%emt 0:00:00]} 37. Ra5+ {[%emt 0:00:01]} Rf5 {[%emt 0:00:02]} 38. Rxf5+ {[%emt 0:00:08]} Kxf5 {[%emt 0:00:00]} 39. Bxh5 {[%emt 0:00:00]} Na4 {[%emt 0:00:14]} 40. Kf3 {[%emt 0:00:08]} Nc5 {[%emt 0:00:08]} 41. Ke2 {[%emt 0:00:01]} g6 {[%emt 0:00:06]} 42. Bf3 {[%emt 0:00:02]} g5 {[%emt 0:00:01]} 43. Bd5 {[%emt 0:00:10]} Ke5 {[%emt 0:00:01]} 44. Bc4 {[%emt 0:00:02]} Kf5 {[%emt 0:00:06]} 45. Bb5 {[%emt 0:00:17]} Ke5 {[%emt 0:00:19]} 46. Kf3 {[%emt 0:00:12]} Kf5 {[%emt 0:00:00]} 47. Bc6 {[%emt 0:00:01]} Ke5 {[%emt 0:00:06]} 48. Ke2 {[%emt 0:00:04]} Kf5 {[%emt 0:00:01]} 49. Bg2 {[%emt 0:00:05]} Ke5 {[%emt 0:00:02]} 50. Bh3 {[%emt 0:00:01]} Kf6 {[%emt 0:00:03]} 51. Bg4 {[%emt 0:00:02]} Ke5 {[%emt 0:00:01]} 52. Bh5 {[%emt 0:00:02]} Kf5 {[%emt 0:00:01]} 53. Bf7 {[%emt 0:00:01]} Ke5 {[%emt 0:00:01]} 54. Bg8 {[%emt 0:00:01]} Kf5 {[%emt 0:00:06]} 55. Kf3 {[%emt 0:00:02]} Ke5 {[%emt 0:00:05]} 56. Bh7 {[%emt 0:00:01]} Nd7 {[%emt 0:00:00]} 57. Ke2 {[%emt 0:00:07]} Nc5 {[%emt 0:00:03]} 58. Kd2 {[%emt 0:00:05]} Nd7 {[%emt 0:00:05]} 59. Bg6 {[%emt 0:00:03]} Nc5 {[%emt 0:00:07]} 60. Kc2 {[%emt 0:00:08]} Kf6 {[%emt 0:00:01]} 61. Bh7 {[%emt 0:00:02]} Kg7 {[%emt 0:00:03]} 62. Be4 {[%emt 0:00:01]} Kf6 {[%emt 0:00:00]} 63. Kb2 {[%emt 0:00:11]} Nxe4 {[%emt 0:00:10]} 64. dxe4 {[%emt 0:00:01]} Ke5 {[%emt 0:00:00]} 65. f3 {[%emt 0:00:02]} g4 {[%emt 0:00:01]} 66. f4+ {[%emt 0:00:26]} Kxe4 {[%emt 0:00:00]} 67. Kc2 {[%emt 0:00:03]} Kf3 {[%emt 0:00:02]} 68. Kd3 {[%emt 0:00:04]} Kxg3 {[%emt 0:00:01]} 69. f5 {[%emt 0:00:00]} Kh2 {[%emt 0:00:00]} 70. f6 {[%emt 0:00:00]} g3 {[%emt 0:00:00]} 71. f7 {[%emt 0:00:00]} g2 {[%emt 0:00:00]} 72. f8=Q {[%emt 0:00:00]} g1=Q {[%emt 0:00:01]} 73. Qh6+ {[%emt 0:00:02]} Kg2 {[%emt 0:00:00]} 74. Qg5+ {[%emt 0:00:00]} Kh1 {[%emt 0:00:00]} 75. Qxg1+ {[%emt 0:00:03]} Kxg1 {[%emt 0:00:01]} 76. Kxd4 {[%emt 0:00:00]} 1/2-1/2

[Event "CCT Chessable Masters Play-In 2025"]
[Site "Online"]
[Date "2025.02.17"]
[Round "5.37"]
[White "Esipenko, Andrey"]
[Black "Alonso Rosell, Alvar"]
[Result "1-0"]
[ECO "C55"]
[WhiteElo "2695"]
[BlackElo "2535"]
[PlyCount "105"]
[EventDate "2025.02.13"]
[EventType "swiss"]
[EventCountry "NET"]
[TimeControl "600"]
[WhiteClock "0:00:54"]

1. e4 {[%emt 0:00:13]} e5 {[%emt 0:00:01]} 2. Nf3 {[%emt 0:00:02]} Nc6 {[%emt 0:00:01]} 3. Nc3 {[%emt 0:00:05]} Nf6 {[%emt 0:00:01]} 4. Bc4 {[%emt 0:00:18]} Nxe4 {[%emt 0:00:11]} 5. Nxe4 {[%emt 0:00:00]} d5 {[%emt 0:00:01]} 6. Bd3 {[%emt 0:00:01]} dxe4 {[%emt 0:00:05]} 7. Bxe4 {[%emt 0:00:00]} Bd6 {[%emt 0:00:00]} 8. O-O {[%emt 0:00:00]} O-O {[%emt 0:00:16]} 9. Re1 {[%emt 0:00:01]} Re8 {[%emt 0:00:28]} 10. h3 {[%emt 0:00:08]} Bd7 {[%emt 0:00:10]} 11. c3 {[%emt 0:00:06]} h6 {[%emt 0:00:07]} 12. b4 {[%emt 0:00:46]} a5 {[%emt 0:00:15]} 13. b5 {[%emt 0:00:10]} Ne7 {[%emt 0:00:01]} 14. a4 {[%emt 0:00:26]} f5 {[%emt 0:00:03]} 15. Bxb7 {[%emt 0:00:14]} Rb8 {[%emt 0:00:02]} 16. Ba6 {[%emt 0:00:06]} Nd5 {[%emt 0:00:10]} 17. d4 {[%emt 0:00:29]} exd4 {[%emt 0:00:38]} 18. Rxe8+ {[%emt 0:00:08]} Bxe8 {[%emt 0:00:12]} 19. Qxd4 {[%emt 0:00:04]} Bf7 {[%emt 0:00:15]} 20. Ne5 {[%emt 0:00:23]} Qe7 {[%emt 0:00:19]} 21. Nd3 {[%emt 0:00:20]} Rd8 {[%emt 0:02:05]} 22. Bb2 {[%emt 0:00:13]} Nf6 {[%emt 0:00:02]} 23. Re1 {[%emt 0:00:39]} Ne4 {[%emt 0:00:02]} 24. Qa7 {[%emt 0:00:00]} Bc4 {[%emt 0:00:34]} 25. b6 {[%emt 0:00:02]} Bxa6 {[%emt 0:01:07]} 26. Qxa6 {[%emt 0:00:00]} cxb6 {[%emt 0:00:05]} 27. Qxb6 {[%emt 0:00:04]} Bc7 {[%emt 0:00:08]} 28. Qc6 {[%emt 0:00:06]} Kh7 {[%emt 0:00:12]} 29. Re3 {[%emt 0:00:04]} Qc5 {[%emt 0:01:17]} 30. Qa6 {[%emt 0:00:42]} Qd5 {[%emt 0:00:16]} 31. c4 {[%emt 0:00:05]} Qf7 {[%emt 0:00:02]} 32. Qb5 {[%emt 0:01:35]} Qg6 {[%emt 0:00:09]} 33. Be5 {[%emt 0:00:09]} Rb8 {[%emt 0:00:03]} 34. Bxc7 {[%emt 0:00:17]} Rxb5 {[%emt 0:00:01]} 35. cxb5 {[%emt 0:00:00]} Qf7 {[%emt 0:00:12]} 36. Bxa5 {[%emt 0:00:16]} Qb3 {[%emt 0:00:01]} 37. Nc5 {[%emt 0:00:01]} Qc2 {[%emt 0:00:09]} 38. Nxe4 {[%emt 0:00:02]} fxe4 {[%emt 0:00:01]} 39. b6 {[%emt 0:00:23]} Qxa4 {[%emt 0:00:01]} 40. Be1 {[%emt 0:00:07]} Qd1 {[%emt 0:00:03]} 41. Rxe4 {[%emt 0:00:02]} Qb1 {[%emt 0:00:01]} 42. f3 {[%emt 0:00:06]} Qxb6+ {[%emt 0:00:01]} 43. Kh2 {[%emt 0:00:01]} Qd6+ {[%emt 0:00:01]} 44. Bg3 {[%emt 0:00:00]} Qd3 {[%emt 0:00:01]} 45. Re7 {[%emt 0:00:03]} Qa3 {[%emt 0:00:00]} 46. Rc7 {[%emt 0:00:02]} Qa5 {[%emt 0:00:01]} 47. Re7 {[%emt 0:00:02]} Kg8 {[%emt 0:00:00]} 48. Re4 {[%emt 0:00:01]} Qb5 {[%emt 0:00:01]} 49. h4 {[%emt 0:00:01]} Qd5 {[%emt 0:00:01]} 50. Re5 {[%emt 0:00:00]} Qd7 {[%emt 0:00:00]} 51. Re4 {[%emt 0:00:02]} Qc6 {[%emt 0:00:01]} 52. Be5 {[%emt 0:00:01]} Qd7 53. Rg4 {[%emt 0:00:00]} 1-0

[Event "CCT Chessable Masters Play-In 2025"]
[Site "Online"]
[Date "2025.02.17"]
[Round "5.38"]
[White "Naroditsky, Daniel"]
[Black "Yoo, Christopher Woojin"]
[Result "0-1"]
[ECO "C26"]
[WhiteElo "2619"]
[BlackElo "2588"]
[PlyCount "70"]
[EventDate "2025.02.13"]
[EventType "swiss"]
[EventCountry "NET"]
[TimeControl "600"]
[WhiteClock "0:01:54"]
[BlackClock "0:04:16"]

1. e4 {[%emt 0:00:04]} e5 {[%emt 0:00:02]} 2. Nf3 {[%emt 0:00:08]} Nf6 {[%emt 0:00:01]} 3. Nc3 {[%emt 0:00:03]} Nc6 {[%emt 0:00:02]} 4. g3 {[%emt 0:00:01]} d5 {[%emt 0:00:11]} 5. exd5 {[%emt 0:00:00]} Nxd5 {[%emt 0:00:01]} 6. Bg2 {[%emt 0:00:00]} Nxc3 {[%emt 0:00:17]} 7. bxc3 {[%emt 0:00:01]} Bd6 {[%emt 0:00:03]} 8. O-O {[%emt 0:00:00]} O-O {[%emt 0:00:39]} 9. d4 {[%emt 0:00:01]} Bg4 {[%emt 0:00:09]} 10. h3 {[%emt 0:00:05]} Bh5 {[%emt 0:00:01]} 11. g4 {[%emt 0:00:21]} Bg6 {[%emt 0:00:02]} 12. dxe5 {[%emt 0:00:16]} Nxe5 {[%emt 0:00:01]} 13. Nd4 {[%emt 0:00:01]} Nc6 {[%emt 0:00:12]} 14. Nxc6 {[%emt 0:01:39]} bxc6 {[%emt 0:00:01]} 15. Be3 {[%emt 0:00:00]} Qh4 {[%emt 0:00:19]} 16. f4 {[%emt 0:00:11]} f5 {[%emt 0:00:01]} 17. g5 {[%emt 0:00:25]} h6 {[%emt 0:00:39]} 18. gxh6 {[%emt 0:00:13]} Qxh6 {[%emt 0:00:06]} 19. Qf3 {[%emt 0:00:04]} Rae8 {[%emt 0:00:11]} 20. Rae1 {[%emt 0:00:18]} Re6 {[%emt 0:01:13]} 21. Bxa7 {[%emt 0:00:50]} Rxe1 {[%emt 0:00:02]} 22. Rxe1 {[%emt 0:00:00]} c5 {[%emt 0:00:00]} 23. Re6 {[%emt 0:00:26]} Qh7 {[%emt 0:00:02]} 24. a4 {[%emt 0:00:41]} Bf7 {[%emt 0:00:04]} 25. Rxd6 {[%emt 0:00:07]} cxd6 {[%emt 0:00:02]} 26. a5 {[%emt 0:00:01]} Qh4 {[%emt 0:00:14]} 27. Bb6 {[%emt 0:00:17]} Qe1+ {[%emt 0:00:12]} 28. Kh2 {[%emt 0:00:00]} Bc4 {[%emt 0:00:05]} 29. Bc7 {[%emt 0:00:14]} Qd2 {[%emt 0:00:11]} 30. Qc6 {[%emt 0:00:55]} Qxf4+ {[%emt 0:00:03]} 31. Kh1 {[%emt 0:00:02]} Rf6 {[%emt 0:00:25]} 32. a6 {[%emt 0:00:10]} Re6 {[%emt 0:00:10]} 33. Bd5 {[%emt 0:00:23]} Qc1+ {[%emt 0:00:01]} 34. Kh2 {[%emt 0:00:03]} Qd2+ {[%emt 0:00:01]} 35. Bg2 {[%emt 0:00:06]} Qf4+ {[%emt 0:00:01]} 0-1